[Event "Titled Tuesday Blitz March 07 Late 2023"]
[White "Paspuel, Trosky"]
[Black "Marcolino, Daniel Mattos"]
[WhiteFideId "3602150"]
[BlackFideId "2106841"]
[WhiteElo "2325"]
[BlackElo "2121"]
[Result "1-0"]
[Round "10"]
[TimeControl "180+2"]
[Date "2023.03.07"]
[WhiteClock "0:00:53"]
[BlackClock "0:00:36"]

1. c4 {[%clk 0:03:00]}  e6 {[%clk 0:02:59]} 2. Nc3 {[%clk 0:03:00]}  d5 {[%clk 0:02:59]} 3. d4 {[%clk 0:03:01]}  a6 {[%clk 0:02:58]} 4. cxd5 {[%clk 0:03:01]}  exd5 {[%clk 0:02:58]} 5. Bf4 {[%clk 0:03:02]}  Nf6 {[%clk 0:02:53]} 6. e3 {[%clk 0:03:02]}  Bd6 {[%clk 0:02:44]} 7. Bxd6 {[%clk 0:02:51]}  Qxd6 {[%clk 0:02:45]} 8. Bd3 {[%clk 0:02:51]}  O-O {[%clk 0:02:39]} 9. Qc2 {[%clk 0:02:40]}  Re8 {[%clk 0:02:36]} 10. Nf3 {[%clk 0:02:40]}  Bg4 {[%clk 0:02:33]} 11. Ne5 {[%clk 0:02:40]}  Bh5 {[%clk 0:02:29]} 12. h3 {[%clk 0:02:26]}  Nbd7 {[%clk 0:02:24]} 13. g4 {[%clk 0:02:26]}  Bg6 {[%clk 0:02:20]} 14. Bxg6 {[%clk 0:02:24]}  hxg6 {[%clk 0:02:19]} 15. f4 {[%clk 0:02:24]}  Ne4 {[%clk 0:01:52]} 16. Nxe4 {[%clk 0:02:22]}  dxe4 {[%clk 0:01:53]} 17. O-O-O {[%clk 0:02:16]}  Rac8 {[%clk 0:01:38]} 18. Kb1 {[%clk 0:02:16]}  Nf6 {[%clk 0:01:19]} 19. h4 {[%clk 0:02:13]}  Nd5 {[%clk 0:01:17]} 20. h5 {[%clk 0:01:55]}  Nxe3 {[%clk 0:01:15]} 21. Qxe4 {[%clk 0:00:59]}  Nxd1 {[%clk 0:01:11]} 22. hxg6 {[%clk 0:00:57]}  f6 {[%clk 0:00:54]} 23. Qf5 {[%clk 0:00:57]}  Rxe5 {[%clk 0:00:38]} 24. Qxc8+ {[%clk 0:00:54]}  Qf8 {[%clk 0:00:36]} 25. Rh8+ {[%clk 0:00:53]} 1-0


[Site "https://www.chess.com"]

[Event "Titled Tuesday Blitz March 07 Late 2023"]
[White "Vargas Pereda, Jesus Manue"]
[Black "Delgado Rosas, Fatima Alexandra"]
[WhiteFideId "5115710"]
[BlackFideId "6603963"]
[WhiteElo "1914"]
[BlackElo "2314"]
[Result "0-1"]
[Round "10"]
[TimeControl "180+2"]
[Date "2023.03.07"]
[WhiteClock "0:00:48"]
[BlackClock "0:02:14"]

1. Nf3 {[%clk 0:02:58]}  Nf6 {[%clk 0:02:59]} 2. c4 {[%clk 0:02:57]}  e6 {[%clk 0:03:00]} 3. g3 {[%clk 0:02:57]}  d5 {[%clk 0:03:00]} 4. Bg2 {[%clk 0:02:56]}  c6 {[%clk 0:02:56]} 5. b3 {[%clk 0:02:50]}  Nbd7 {[%clk 0:02:56]} 6. O-O {[%clk 0:02:51]}  Be7 {[%clk 0:02:56]} 7. d3 {[%clk 0:02:50]}  O-O {[%clk 0:02:57]} 8. Bb2 {[%clk 0:02:50]}  Re8 {[%clk 0:02:55]} 9. Nbd2 {[%clk 0:02:50]}  b6 {[%clk 0:02:55]} 10. e4 {[%clk 0:02:43]}  dxe4 {[%clk 0:02:55]} 11. dxe4 {[%clk 0:02:42]}  Bb7 {[%clk 0:02:54]} 12. Qc2 {[%clk 0:02:42]}  c5 {[%clk 0:02:52]} 13. Rad1 {[%clk 0:02:40]}  Qc7 {[%clk 0:02:52]} 14. e5 {[%clk 0:02:28]}  Nh5 {[%clk 0:02:50]} 15. Ne4 {[%clk 0:02:16]}  Rad8 {[%clk 0:02:44]} 16. Nd6 {[%clk 0:02:04]}  Bxd6 {[%clk 0:02:44]} 17. exd6 {[%clk 0:02:04]}  Qb8 {[%clk 0:02:44]} 18. Ng5 {[%clk 0:01:54]}  Nhf6 {[%clk 0:02:41]} 19. Bxb7 {[%clk 0:01:29]}  Qxb7 {[%clk 0:02:41]} 20. Qc3 {[%clk 0:01:27]}  h6 {[%clk 0:02:40]} 21. Nf3 {[%clk 0:01:24]}  Qc6 {[%clk 0:02:34]} 22. Rd3 {[%clk 0:01:18]}  e5 {[%clk 0:02:34]} 23. Nh4 {[%clk 0:01:11]}  Nf8 {[%clk 0:02:32]} 24. Nf5 {[%clk 0:01:03]}  Qe4 {[%clk 0:02:30]} 25. Rf3 {[%clk 0:01:01]}  Ne6 {[%clk 0:02:26]} 26. Nxh6+ {[%clk 0:00:55]}  Kh7 {[%clk 0:02:17]} 27. Nxf7 {[%clk 0:00:51]}  Ng5 {[%clk 0:02:16]} 28. Rxf6 {[%clk 0:00:48]}  Nh3# {[%clk 0:02:14]} 0-1


[Site "https://www.chess.com"]

[Event "Titled Tuesday Blitz March 07 Late 2023"]
[White "Karttunen, Mika"]
[Black "Curtis, John"]
[WhiteFideId "502081"]
[BlackFideId "3200256"]
[WhiteElo "2396"]
[BlackElo "2203"]
[Result "1-0"]
[Round "10"]
[TimeControl "180+2"]
[Date "2023.03.07"]
[WhiteClock "0:00:14"]
[BlackClock "0:00:02"]

1. e4 {[%clk 0:03:00]}  Nf6 {[%clk 0:02:57]} 2. e5 {[%clk 0:02:59]}  Nd5 {[%clk 0:02:57]} 3. d4 {[%clk 0:03:00]}  Nb6 {[%clk 0:02:57]} 4. a4 {[%clk 0:02:58]}  a5 {[%clk 0:02:55]} 5. Bb5 {[%clk 0:02:55]}  c6 {[%clk 0:02:54]} 6. Bd3 {[%clk 0:02:54]}  d6 {[%clk 0:02:53]} 7. Nf3 {[%clk 0:02:38]}  Bg4 {[%clk 0:02:52]} 8. h3 {[%clk 0:02:36]}  Bxf3 {[%clk 0:02:50]} 9. Qxf3 {[%clk 0:02:36]}  e6 {[%clk 0:02:34]} 10. Qg3 {[%clk 0:02:21]}  d5 {[%clk 0:02:04]} 11. O-O {[%clk 0:02:12]}  g6 {[%clk 0:01:59]} 12. f4 {[%clk 0:02:03]}  Qc7 {[%clk 0:01:28]} 13. b3 {[%clk 0:01:43]}  N8d7 {[%clk 0:01:21]} 14. c4 {[%clk 0:01:39]}  c5 {[%clk 0:01:06]} 15. Nc3 {[%clk 0:01:21]}  dxc4 {[%clk 0:00:58]} 16. Nb5 {[%clk 0:01:17]}  Qd8 {[%clk 0:00:39]} 17. bxc4 {[%clk 0:00:50]}  cxd4 {[%clk 0:00:39]} 18. f5 {[%clk 0:00:43]}  gxf5 {[%clk 0:00:26]} 19. Bxf5 {[%clk 0:00:43]}  Nc5 {[%clk 0:00:13]} 20. Bg4 {[%clk 0:00:31]}  Nxc4 {[%clk 0:00:13]} 21. Bh5 {[%clk 0:00:29]}  Kd7 {[%clk 0:00:04]} 22. Rxf7+ {[%clk 0:00:24]}  Kc6 {[%clk 0:00:04]} 23. Bf3+ {[%clk 0:00:19]}  Kb6 {[%clk 0:00:02]} 24. Rb1 {[%clk 0:00:14]} 1-0


[Site "https://www.chess.com"]

[Event "Titled Tuesday Blitz March 07 Late 2023"]
[White "Needleman, Gaston"]
[Black "Gamage, Wanshini Vidusama"]
[WhiteFideId "113735"]
[BlackFideId "9953752"]
[WhiteElo "2266"]
[BlackElo "2191"]
[Result "0-1"]
[Round "10"]
[TimeControl "180+2"]
[Date "2023.03.07"]
[WhiteClock "0:00:37"]
[BlackClock "0:00:19"]

1. e4 {[%clk 0:03:00]}  c5 {[%clk 0:02:59]} 2. Nf3 {[%clk 0:03:01]}  d6 {[%clk 0:02:59]} 3. c3 {[%clk 0:03:01]}  Nf6 {[%clk 0:02:59]} 4. Be2 {[%clk 0:02:59]}  g6 {[%clk 0:02:57]} 5. O-O {[%clk 0:02:58]}  Bg7 {[%clk 0:02:56]} 6. Re1 {[%clk 0:02:57]}  O-O {[%clk 0:02:56]} 7. Bf1 {[%clk 0:02:56]}  Nc6 {[%clk 0:02:53]} 8. d4 {[%clk 0:02:55]}  cxd4 {[%clk 0:02:53]} 9. cxd4 {[%clk 0:02:55]}  d5 {[%clk 0:02:54]} 10. e5 {[%clk 0:02:55]}  Ne4 {[%clk 0:02:55]} 11. Nc3 {[%clk 0:02:54]}  Nxc3 {[%clk 0:02:54]} 12. bxc3 {[%clk 0:02:55]}  Na5 {[%clk 0:02:53]} 13. Ba3 {[%clk 0:02:52]}  Re8 {[%clk 0:02:50]} 14. Rb1 {[%clk 0:02:51]}  b6 {[%clk 0:02:50]} 15. Bb5 {[%clk 0:02:48]}  Bd7 {[%clk 0:02:49]} 16. e6 {[%clk 0:02:45]}  fxe6 {[%clk 0:02:29]} 17. Ng5 {[%clk 0:02:43]}  Bxb5 {[%clk 0:02:24]} 18. Rxb5 {[%clk 0:02:41]}  Qd7 {[%clk 0:02:24]} 19. Qa4 {[%clk 0:02:35]}  e5 {[%clk 0:02:13]} 20. dxe5 {[%clk 0:02:33]}  Rac8 {[%clk 0:01:58]} 21. Rxa5 {[%clk 0:02:31]}  Qf5 {[%clk 0:01:38]} 22. Rxd5 {[%clk 0:02:26]}  Qxg5 {[%clk 0:01:36]} 23. h3 {[%clk 0:02:13]}  Red8 {[%clk 0:01:24]} 24. Rxd8+ {[%clk 0:02:08]}  Rxd8 {[%clk 0:01:25]} 25. e6 {[%clk 0:02:06]}  Bxc3 {[%clk 0:01:19]} 26. Rd1 {[%clk 0:02:00]}  Rf8 {[%clk 0:01:14]} 27. Qc4 {[%clk 0:01:50]}  Qf6 {[%clk 0:01:10]} 28. Rf1 {[%clk 0:01:46]}  Bd4 {[%clk 0:01:09]} 29. Kh1 {[%clk 0:01:39]}  Bxf2 {[%clk 0:00:53]} 30. Qe2 {[%clk 0:01:37]}  Qh4 {[%clk 0:00:37]} 31. Bb2 {[%clk 0:01:28]}  Bd4 {[%clk 0:00:28]} 32. Rxf8+ {[%clk 0:01:25]}  Kxf8 {[%clk 0:00:29]} 33. Qf3+ {[%clk 0:01:22]}  Bf6 {[%clk 0:00:30]} 34. Qa8+ {[%clk 0:01:17]}  Kg7 {[%clk 0:00:27]} 35. Bxf6+ {[%clk 0:01:10]}  Kxf6 {[%clk 0:00:26]} 36. Qf8+ {[%clk 0:01:09]}  Kxe6 {[%clk 0:00:24]} 37. Qg8+ {[%clk 0:01:08]}  Kd6 {[%clk 0:00:19]} 38. Qd8+ {[%clk 0:01:04]}  Ke5 {[%clk 0:00:19]} 39. Qb8+ {[%clk 0:00:59]}  Kf5 {[%clk 0:00:19]} 40. Qc8+ {[%clk 0:00:53]}  e6 {[%clk 0:00:20]} 41. Qc2+ {[%clk 0:00:51]}  Qe4 {[%clk 0:00:19]} 42. Qf2+ {[%clk 0:00:49]}  Ke5 {[%clk 0:00:19]} 43. Qb2+ {[%clk 0:00:46]}  Qd4 {[%clk 0:00:19]} 44. Qe2+ {[%clk 0:00:44]}  Kd5 {[%clk 0:00:19]} 45. Qf3+ {[%clk 0:00:43]}  Kc5 {[%clk 0:00:20]} 46. Qa3+ {[%clk 0:00:42]}  Kc6 {[%clk 0:00:18]} 47. Qxa7 {[%clk 0:00:42]}  e5 {[%clk 0:00:18]} 48. Qa8+ {[%clk 0:00:41]}  Kc5 {[%clk 0:00:18]} 49. Qc8+ {[%clk 0:00:41]}  Kb4 {[%clk 0:00:19]} 50. Qf8+ {[%clk 0:00:41]}  Kc3 {[%clk 0:00:19]} 51. Qa3+ {[%clk 0:00:41]}  Kd2 {[%clk 0:00:19]} 52. Qd6 {[%clk 0:00:37]}  Qxd6 {[%clk 0:00:19]} 0-1


[Site "https://www.chess.com"]

[Event "Titled Tuesday Blitz March 07 Late 2023"]
[White "Dorato, Adriano"]
[Black "Pasti, Aron"]
[WhiteFideId "2802894"]
[BlackFideId "785857"]
[WhiteElo "1709"]
[BlackElo "2173"]
[Result "0-1"]
[Round "10"]
[TimeControl "180+2"]
[Date "2023.03.07"]
[WhiteClock "0:00:01"]
[BlackClock "0:00:05"]

1. d4 {[%clk 0:03:00]}  d5 {[%clk 0:02:58]} 2. Nf3 {[%clk 0:02:52]}  Nf6 {[%clk 0:02:58]} 3. e3 {[%clk 0:02:42]}  Bg4 {[%clk 0:02:57]} 4. h3 {[%clk 0:02:40]}  Bh5 {[%clk 0:02:57]} 5. g4 {[%clk 0:02:40]}  Bg6 {[%clk 0:02:56]} 6. Ne5 {[%clk 0:02:40]}  e6 {[%clk 0:02:52]} 7. h4 {[%clk 0:02:39]}  Nbd7 {[%clk 0:02:49]} 8. h5 {[%clk 0:02:22]}  Be4 {[%clk 0:02:48]} 9. f3 {[%clk 0:02:18]}  Nxe5 {[%clk 0:02:46]} 10. dxe5 {[%clk 0:02:17]}  Nxg4 {[%clk 0:02:34]} 11. fxe4 {[%clk 0:02:15]}  Nxe5 {[%clk 0:02:32]} 12. exd5 {[%clk 0:02:13]}  exd5 {[%clk 0:02:32]} 13. Nc3 {[%clk 0:02:10]}  Bb4 {[%clk 0:02:18]} 14. Bd2 {[%clk 0:02:05]}  Qg5 {[%clk 0:02:16]} 15. Qe2 {[%clk 0:01:53]}  Qg3+ {[%clk 0:02:08]} 16. Kd1 {[%clk 0:01:48]}  O-O-O {[%clk 0:01:57]} 17. Kc1 {[%clk 0:01:29]}  Nc4 {[%clk 0:01:39]} 18. Bh3+ {[%clk 0:00:57]}  Kb8 {[%clk 0:01:35]} 19. Qg4 {[%clk 0:00:43]}  Qf2 {[%clk 0:01:20]} 20. Qg2 {[%clk 0:00:38]}  Qf6 {[%clk 0:01:14]} 21. a3 {[%clk 0:00:20]}  Bc5 {[%clk 0:00:48]} 22. Rf1 {[%clk 0:00:20]}  Qb6 {[%clk 0:00:44]} 23. b3 {[%clk 0:00:18]}  Nxe3 {[%clk 0:00:43]} 24. Bxe3 {[%clk 0:00:18]}  Bxe3+ {[%clk 0:00:42]} 25. Kb2 {[%clk 0:00:18]}  Bd4 {[%clk 0:00:33]} 26. Qg3 {[%clk 0:00:16]}  Bf6 {[%clk 0:00:31]} 27. Rad1 {[%clk 0:00:15]}  d4 {[%clk 0:00:31]} 28. Ne4 {[%clk 0:00:14]}  Be7 {[%clk 0:00:22]} 29. Rxf7 {[%clk 0:00:13]}  Rhe8 {[%clk 0:00:14]} 30. Qd3 {[%clk 0:00:12]}  Qa5 {[%clk 0:00:13]} 31. b4 {[%clk 0:00:11]}  Bxb4 {[%clk 0:00:12]} 32. axb4 {[%clk 0:00:11]}  Qxb4+ {[%clk 0:00:13]} 33. Qb3 {[%clk 0:00:11]}  Qxb3+ {[%clk 0:00:13]} 34. cxb3 {[%clk 0:00:10]}  Rxe4 {[%clk 0:00:14]} 35. Rxg7 {[%clk 0:00:09]}  d3 {[%clk 0:00:14]} 36. Rxh7 {[%clk 0:00:09]}  a6 {[%clk 0:00:11]} 37. Rd7 {[%clk 0:00:09]}  Rxd7 {[%clk 0:00:10]} 38. Bxd7 {[%clk 0:00:08]}  Rd4 {[%clk 0:00:11]} 39. Bf5 {[%clk 0:00:08]}  Rd5 {[%clk 0:00:09]} 40. Bg6 {[%clk 0:00:08]}  c5 {[%clk 0:00:07]} 41. Rxd3 {[%clk 0:00:07]}  Rg5 {[%clk 0:00:06]} 42. Rh3 {[%clk 0:00:05]}  Rg2+ {[%clk 0:00:06]} 43. Kc3 {[%clk 0:00:04]}  Rf2 {[%clk 0:00:04]} 44. h6 {[%clk 0:00:03]}  Rf8 {[%clk 0:00:05]} 45. h7 {[%clk 0:00:02]}  Rh8 {[%clk 0:00:05]} 46. Bc2 {[%clk 0:00:01]}  Kc7 {[%clk 0:00:05]} 0-1


[Site "https://www.chess.com"]

[Event "Titled Tuesday Blitz March 07 Late 2023"]
[White "Bongo Akanga Ndjila, Barthelemy"]
[Black "Desideri, Ricardo Maruchi"]
[WhiteFideId "10609431"]
[BlackFideId "2110440"]
[WhiteElo "1768"]
[BlackElo "1945"]
[Result "1/2-1/2"]
[Round "10"]
[TimeControl "180+2"]
[Date "2023.03.07"]
[WhiteClock "0:01:07"]
[BlackClock "0:00:05"]

1. d4 {[%clk 0:02:59]}  Nf6 {[%clk 0:02:58]} 2. c4 {[%clk 0:02:42]}  c5 {[%clk 0:02:57]} 3. d5 {[%clk 0:02:41]}  e6 {[%clk 0:02:57]} 4. Nc3 {[%clk 0:02:40]}  exd5 {[%clk 0:02:58]} 5. cxd5 {[%clk 0:02:40]}  d6 {[%clk 0:02:58]} 6. Nf3 {[%clk 0:02:41]}  g6 {[%clk 0:02:59]} 7. Bf4 {[%clk 0:02:40]}  a6 {[%clk 0:02:55]} 8. a4 {[%clk 0:02:39]}  Bg7 {[%clk 0:02:50]} 9. e3 {[%clk 0:02:38]}  O-O {[%clk 0:02:47]} 10. h3 {[%clk 0:02:39]}  Re8 {[%clk 0:02:38]} 11. Bd3 {[%clk 0:02:32]}  Nbd7 {[%clk 0:02:38]} 12. O-O {[%clk 0:02:30]}  Ne5 {[%clk 0:02:35]} 13. Bxe5 {[%clk 0:02:20]}  dxe5 {[%clk 0:02:35]} 14. e4 {[%clk 0:02:21]}  Nd7 {[%clk 0:02:25]} 15. a5 {[%clk 0:02:16]}  b5 {[%clk 0:02:20]} 16. axb6 {[%clk 0:02:14]}  Qxb6 {[%clk 0:02:20]} 17. Qc2 {[%clk 0:02:11]}  Rb8 {[%clk 0:02:19]} 18. Ra2 {[%clk 0:02:07]}  Qb4 {[%clk 0:01:41]} 19. Nd2 {[%clk 0:02:05]}  Nb6 {[%clk 0:01:17]} 20. Bxa6 {[%clk 0:02:03]}  Bxa6 {[%clk 0:01:07]} 21. Rxa6 {[%clk 0:02:03]}  Nc4 {[%clk 0:00:54]} 22. Nxc4 {[%clk 0:01:59]}  Qxc4 {[%clk 0:00:54]} 23. Ra4 {[%clk 0:01:57]}  Rb4 {[%clk 0:00:52]} 24. Rfa1 {[%clk 0:01:46]}  Reb8 {[%clk 0:00:52]} 25. Qc1 {[%clk 0:01:33]}  Qb3 {[%clk 0:00:16]} 26. Rxb4 {[%clk 0:01:28]}  cxb4 {[%clk 0:00:14]} 27. Na4 {[%clk 0:01:17]}  Ra8 {[%clk 0:00:12]} 28. Nc5 {[%clk 0:01:16]}  Rxa1 {[%clk 0:00:09]} 29. Qxa1 {[%clk 0:01:15]}  Qc4 {[%clk 0:00:05]} 30. Qa8+ {[%clk 0:01:11]}  Bf8 {[%clk 0:00:05]} 31. Nd7 {[%clk 0:01:11]}  Qc1+ {[%clk 0:00:02]} 32. Kh2 {[%clk 0:01:06]}  Qf4+ {[%clk 0:00:03]} 33. Kg1 {[%clk 0:01:05]}  Qc1+ {[%clk 0:00:03]} 34. Kh2 {[%clk 0:01:06]}  Qf4+ {[%clk 0:00:02]} 35. g3 {[%clk 0:01:06]}  Qxf2+ {[%clk 0:00:02]} 36. Kh1 {[%clk 0:01:06]}  Qf1+ {[%clk 0:00:03]} 37. Kh2 {[%clk 0:01:07]}  Qf2+ {[%clk 0:00:03]} 38. Kh1 {[%clk 0:01:07]}  Qf1+ {[%clk 0:00:04]} 39. Kh2 {[%clk 0:01:07]}  Qf2+ {[%clk 0:00:05]} 1/2-1/2


[Site "https://www.chess.com"]

[Event "Titled Tuesday Blitz March 07 Late 2023"]
[White "Stead, Kerry"]
[Black "Vargas, Mauricio"]
[WhiteFideId "3202577"]
[BlackFideId "4404572"]
[WhiteElo "1997"]
[BlackElo "2025"]
[Result "1-0"]
[Round "10"]
[TimeControl "180+2"]
[Date "2023.03.07"]
[WhiteClock "0:01:04"]
[BlackClock "0:00:02"]

1. d4 {[%clk 0:02:58]}  d5 {[%clk 0:01:58]} 2. e4 {[%clk 0:02:54]}  dxe4 {[%clk 0:01:57]} 3. Nc3 {[%clk 0:02:53]}  Nf6 {[%clk 0:01:58]} 4. f3 {[%clk 0:02:52]}  exf3 {[%clk 0:01:54]} 5. Nxf3 {[%clk 0:02:53]}  Bg4 {[%clk 0:01:54]} 6. h3 {[%clk 0:02:52]}  Bh5 {[%clk 0:01:54]} 7. g4 {[%clk 0:02:51]}  Bg6 {[%clk 0:01:54]} 8. Ne5 {[%clk 0:02:52]}  e6 {[%clk 0:01:47]} 9. Qf3 {[%clk 0:02:52]}  c6 {[%clk 0:01:45]} 10. Bg5 {[%clk 0:02:50]}  Be7 {[%clk 0:01:34]} 11. O-O-O {[%clk 0:02:46]}  h6 {[%clk 0:01:29]} 12. Be3 {[%clk 0:02:37]}  Bh7 {[%clk 0:01:29]} 13. Bd3 {[%clk 0:02:31]}  Bxd3 {[%clk 0:01:28]} 14. Rxd3 {[%clk 0:02:30]}  Nbd7 {[%clk 0:01:28]} 15. h4 {[%clk 0:02:28]}  Nxe5 {[%clk 0:01:22]} 16. dxe5 {[%clk 0:02:28]}  Nd5 {[%clk 0:01:22]} 17. Rf1 {[%clk 0:02:27]}  O-O {[%clk 0:01:19]} 18. g5 {[%clk 0:02:21]}  hxg5 {[%clk 0:01:15]} 19. hxg5 {[%clk 0:02:16]}  Bxg5 {[%clk 0:01:14]} 20. Bxg5 {[%clk 0:02:14]}  Qxg5+ {[%clk 0:01:14]} 21. Kb1 {[%clk 0:02:13]}  Qxe5 {[%clk 0:01:14]} 22. Ne4 {[%clk 0:02:07]}  Rad8 {[%clk 0:01:08]} 23. Rh1 {[%clk 0:02:04]}  Qf6 {[%clk 0:00:55]} 24. Nxf6+ {[%clk 0:02:02]}  Nxf6 {[%clk 0:00:55]} 25. Rxd8 {[%clk 0:02:00]}  Rxd8 {[%clk 0:00:55]} 26. Qh3 {[%clk 0:01:54]}  Kf8 {[%clk 0:00:53]} 27. Kc1 {[%clk 0:01:51]}  Ke7 {[%clk 0:00:51]} 28. c3 {[%clk 0:01:50]}  Nd5 {[%clk 0:00:50]} 29. Rd1 {[%clk 0:01:48]}  g6 {[%clk 0:00:41]} 30. a3 {[%clk 0:01:43]}  b5 {[%clk 0:00:33]} 31. Qh4+ {[%clk 0:01:38]}  Ke8 {[%clk 0:00:28]} 32. c4 {[%clk 0:01:31]}  Ne7 {[%clk 0:00:22]} 33. Rxd8+ {[%clk 0:01:29]}  Kxd8 {[%clk 0:00:21]} 34. cxb5 {[%clk 0:01:30]}  cxb5 {[%clk 0:00:21]} 35. Qd4+ {[%clk 0:01:28]}  Ke8 {[%clk 0:00:21]} 36. Qxa7 {[%clk 0:01:27]}  Kf8 {[%clk 0:00:18]} 37. Qb8+ {[%clk 0:01:27]}  Kg7 {[%clk 0:00:17]} 38. Qxb5 {[%clk 0:01:27]}  Nd5 {[%clk 0:00:16]} 39. a4 {[%clk 0:01:25]}  Kf6 {[%clk 0:00:15]} 40. a5 {[%clk 0:01:23]}  g5 {[%clk 0:00:15]} 41. a6 {[%clk 0:01:23]}  g4 {[%clk 0:00:15]} 42. a7 {[%clk 0:01:19]}  g3 {[%clk 0:00:14]} 43. Qf1+ {[%clk 0:01:15]}  Kg6 {[%clk 0:00:11]} 44. a8=Q {[%clk 0:01:14]}  Kg5 {[%clk 0:00:06]} 45. Qf3 {[%clk 0:01:13]}  g2 {[%clk 0:00:04]} 46. Qxg2+ {[%clk 0:01:12]}  Kf5 {[%clk 0:00:05]} 47. Qf3+ {[%clk 0:01:12]}  Ke5 {[%clk 0:00:05]} 48. Qb8+ {[%clk 0:01:10]}  Kd4 {[%clk 0:00:05]} 49. Qa7+ {[%clk 0:01:08]}  Ke5 {[%clk 0:00:01]} 50. Qg3+ {[%clk 0:01:07]}  Ke4 {[%clk 0:00:01]} 51. Qa4+ {[%clk 0:01:05]}  Kf5 {[%clk 0:00:02]} 52. Qag4+ {[%clk 0:01:03]}  Kf6 {[%clk 0:00:02]} 53. Qg5# {[%clk 0:01:04]} 1-0


[Site "https://www.chess.com"]

[Event "Titled Tuesday Blitz March 07 Late 2023"]
[White "Manu_ChessExcelsior"]
[Black "Skaric, Djuro"]
[BlackFideId "934569"]
[WhiteElo "1990"]
[BlackElo "2282"]
[Result "0-1"]
[Round "10"]
[TimeControl "180+2"]
[Date "2023.03.07"]
[WhiteClock "0:00:01"]
[BlackClock "0:00:37"]

1. e4 {[%clk 0:03:00]}  d6 {[%clk 0:02:59]} 2. d4 {[%clk 0:03:00]}  g6 {[%clk 0:03:00]} 3. Nc3 {[%clk 0:03:00]}  Bg7 {[%clk 0:03:01]} 4. f4 {[%clk 0:03:01]}  Nf6 {[%clk 0:03:02]} 5. Nf3 {[%clk 0:03:01]}  O-O {[%clk 0:03:02]} 6. Be3 {[%clk 0:03:01]}  Nc6 {[%clk 0:03:02]} 7. Qd2 {[%clk 0:03:01]}  e5 {[%clk 0:03:02]} 8. O-O-O {[%clk 0:02:59]}  Ng4 {[%clk 0:03:01]} 9. Bg1 {[%clk 0:02:59]}  exd4 {[%clk 0:02:58]} 10. Nxd4 {[%clk 0:02:59]}  a6 {[%clk 0:02:58]} 11. h3 {[%clk 0:02:58]}  Nf6 {[%clk 0:02:49]} 12. g4 {[%clk 0:02:57]}  Re8 {[%clk 0:02:44]} 13. Bg2 {[%clk 0:02:54]}  Bd7 {[%clk 0:02:40]} 14. Bf2 {[%clk 0:02:52]}  Rb8 {[%clk 0:02:32]} 15. Rhe1 {[%clk 0:02:51]}  b5 {[%clk 0:02:29]} 16. Nxc6 {[%clk 0:02:41]}  Bxc6 {[%clk 0:02:29]} 17. e5 {[%clk 0:02:42]}  Bxg2 {[%clk 0:02:29]} 18. exf6 {[%clk 0:02:42]}  Bxf6 {[%clk 0:02:28]} 19. Rxe8+ {[%clk 0:02:40]}  Qxe8 {[%clk 0:02:24]} 20. Re1 {[%clk 0:02:39]}  Qc6 {[%clk 0:02:22]} 21. Bd4 {[%clk 0:02:37]}  Bh4 {[%clk 0:02:20]} 22. Re2 {[%clk 0:02:26]}  b4 {[%clk 0:02:17]} 23. Nd1 {[%clk 0:02:15]}  Bf3 {[%clk 0:02:07]} 24. Re3 {[%clk 0:02:10]}  Qd5 {[%clk 0:02:04]} 25. Rd3 {[%clk 0:01:49]}  Qxa2 {[%clk 0:02:01]} 26. b3 {[%clk 0:01:47]}  c5 {[%clk 0:01:54]} 27. Bb2 {[%clk 0:01:46]}  c4 {[%clk 0:01:54]} 28. Rxd6 {[%clk 0:01:39]}  Bxd1 {[%clk 0:01:46]} 29. bxc4 {[%clk 0:00:55]}  Qxc4 {[%clk 0:01:33]} 30. Qxd1 {[%clk 0:00:53]}  b3 {[%clk 0:01:28]} 31. Rd4 {[%clk 0:00:23]}  Qxc2+ {[%clk 0:01:27]} 32. Qxc2 {[%clk 0:00:24]}  bxc2 {[%clk 0:01:27]} 33. Kxc2 {[%clk 0:00:24]}  f5 {[%clk 0:01:24]} 34. Ra4 {[%clk 0:00:18]}  Rb6 {[%clk 0:01:20]} 35. Bc3 {[%clk 0:00:18]}  Rc6 {[%clk 0:01:19]} 36. Kd3 {[%clk 0:00:18]}  Kf7 {[%clk 0:01:18]} 37. Ra5 {[%clk 0:00:14]}  Bd8 {[%clk 0:01:14]} 38. Rd5 {[%clk 0:00:13]}  Be7 {[%clk 0:01:09]} 39. gxf5 {[%clk 0:00:13]}  gxf5 {[%clk 0:01:05]} 40. Rxf5+ {[%clk 0:00:14]}  Kg6 {[%clk 0:01:05]} 41. Rd5 {[%clk 0:00:13]}  Bd6 {[%clk 0:00:54]} 42. f5+ {[%clk 0:00:12]}  Kg5 {[%clk 0:00:54]} 43. f6+ {[%clk 0:00:12]}  Kg6 {[%clk 0:00:54]} 44. h4 {[%clk 0:00:11]}  h6 {[%clk 0:00:52]} 45. h5+ {[%clk 0:00:11]}  Kf7 {[%clk 0:00:52]} 46. Rf5 {[%clk 0:00:08]}  Bf8 {[%clk 0:00:50]} 47. Rf3 {[%clk 0:00:07]}  Rc5 {[%clk 0:00:43]} 48. Rh3 {[%clk 0:00:03]}  a5 {[%clk 0:00:40]} 49. Bd4 {[%clk 0:00:01]}  Rg5 {[%clk 0:00:37]} 0-1


[Site "https://www.chess.com"]

[Event "Titled Tuesday Blitz March 07 Late 2023"]
[White "Kho, Darrell"]
[Black "Winkels, Marcel"]
[WhiteFideId "1019317"]
[BlackFideId "1003887"]
[WhiteElo "2154"]
[BlackElo "1900"]
[Result "1-0"]
[Round "10"]
[TimeControl "180+2"]
[Date "2023.03.07"]
[WhiteClock "0:00:10"]
[BlackClock "0:00:18"]

1. e4 {[%clk 0:03:00]}  g6 {[%clk 0:02:57]} 2. d4 {[%clk 0:03:00]}  Bg7 {[%clk 0:02:57]} 3. Nc3 {[%clk 0:02:58]}  c5 {[%clk 0:02:57]} 4. dxc5 {[%clk 0:02:54]}  Qa5 {[%clk 0:02:56]} 5. Bd2 {[%clk 0:02:51]}  Qxc5 {[%clk 0:02:55]} 6. Nd5 {[%clk 0:02:34]}  Na6 {[%clk 0:02:21]} 7. Nf3 {[%clk 0:02:20]}  Nf6 {[%clk 0:02:01]} 8. b4 {[%clk 0:01:48]}  Qd6 {[%clk 0:01:56]} 9. Bf4 {[%clk 0:01:34]}  e5 {[%clk 0:01:52]} 10. Bxe5 {[%clk 0:01:24]}  Qc6 {[%clk 0:01:46]} 11. b5 {[%clk 0:01:12]}  Qc5 {[%clk 0:01:39]} 12. Nxf6+ {[%clk 0:00:51]}  Bxf6 {[%clk 0:01:25]} 13. Bxf6 {[%clk 0:00:51]}  O-O {[%clk 0:01:20]} 14. bxa6 {[%clk 0:00:47]}  Qb6 {[%clk 0:01:05]} 15. Qd4 {[%clk 0:00:42]}  Qc6 {[%clk 0:00:55]} 16. Bc4 {[%clk 0:00:36]}  Re8 {[%clk 0:00:50]} 17. Bd5 {[%clk 0:00:27]}  Qxa6 {[%clk 0:00:48]} 18. Bh8 {[%clk 0:00:19]}  Kf8 {[%clk 0:00:27]} 19. Qg7+ {[%clk 0:00:17]}  Ke7 {[%clk 0:00:26]} 20. Qxf7+ {[%clk 0:00:17]}  Kd6 {[%clk 0:00:26]} 21. Qf6+ {[%clk 0:00:12]}  Re6 {[%clk 0:00:22]} 22. Bxe6 {[%clk 0:00:11]}  dxe6 {[%clk 0:00:22]} 23. Qd4+ {[%clk 0:00:11]}  Ke7 {[%clk 0:00:21]} 24. Bf6+ {[%clk 0:00:11]}  Kf7 {[%clk 0:00:20]} 25. Ng5+ {[%clk 0:00:11]}  Ke8 {[%clk 0:00:18]} 26. Qd8# {[%clk 0:00:10]} 1-0


[Site "https://www.chess.com"]